fUSD/lending_fUSD_20251225
["ID","MTS","AMOUNT","RATE_DAILY","PERIOD"]
[399788845,1766678900393,1701.873069,0.00011944,2]
[399788847,1766678951147,-631.34650082,0.00012004,2]
[399788859,1766679031316,-248.0,0.00012004,2]
[399788860,1766679031327,-11.81349918,0.00012004,2]
[399788861,1766679031337,-250.0,0.00012069,2]
[399788862,1766679031347,-252.52624561,0.00012168,2]
[399788863,1766679031364,-240.82764264,0.00012229,2]
[399788864,1766679031374,-500.0,0.0001223,2]
[399788865,1766679031384,-240.82764263,0.00012316,2]
[399788866,1766679031395,-166.66,0.00012329,2]
[399788867,1766679031406,-162.62,0.00012341,2]
[399788868,1766679031416,-734.39,0.00012353,2]
[399788869,1766679031426,-150.0,0.00012353,2]
[399788870,1766679031436,-1200.0,0.00012376,2]
[399788871,1766679031446,-150.0,0.00012377,2]
[399788872,1766679031456,-300.0,0.00012377,2]
[399788873,1766679031466,-274.93303055,0.00012378,2]
[399788874,1766679031476,-230.22359054,0.00012378,2]
[399788875,1766679031486,-251.80538329,0.00012378,2]
[399788876,1766679031496,-500.0,0.00012378,2]
[399788877,1766679031506,-500.0,0.00012378,2]
[399788878,1766679031516,-232.88811079,0.00012378,2]
[399788879,1766679031526,-500.0,0.00012378,2]
[399788880,1766679031536,-500.0,0.00012378,2]
[399788881,1766679031545,-500.0,0.00012378,2]
[399788882,1766679031559,-500.0,0.00012378,2]
[399788883,1766679031569,-500.0,0.00012378,2]
[399788884,1766679031580,-500.0,0.00012378,2]
[399788885,1766679031589,-500.0,0.00012378,2]
[399788887,1766679031599,-500.0,0.00012378,2]
[399788889,1766679031608,-500.0,0.00012378,2]
[399788891,1766679031618,-500.0,0.00012378,2]
[399788893,1766679031627,-500.0,0.00012378,2]
[399788895,1766679031637,-500.0,0.00012378,2]
[399788897,1766679031647,-500.0,0.00012378,2]
[399788899,1766679031657,-500.0,0.00012378,2]
[399788901,1766679031668,-846.7,0.00012378,2]
[399788903,1766679031678,-150.99,0.00012379,2]
[399788905,1766679031697,-9999.99,0.00012379,2]
[399788907,1766679031709,-150.99,0.00012379,2]
[399788909,1766679031719,-9999.99,0.00012379,2]
[399788911,1766679031728,-150.0,0.00012392,2]
[399788913,1766679031737,-240.82764263,0.00012402,2]
[399788915,1766679031747,-894.91811465,0.00012451,2]
[399788917,1766679031760,-166.66,0.00012452,2]
[399788919,1766679031769,-12451.27,0.00012452,2]
[399788921,1766679031779,-733.92,0.00012452,2]
[399788924,1766679031788,-5992.16473081,0.00012452,2]
[399788927,1766679031801,-300.0,0.00012452,2]
[399788932,1766679031826,-3707.82526919,0.00012452,2]
[399788934,1766679031837,-166.5071,0.00012502,2]
[399788936,1766679031847,-11920.13,0.00012552,2]
[399788938,1766679031857,-166.66,0.00012575,2]
[399788940,1766679031867,-846.7,0.00012652,2]
[399788942,1766679031878,-500.0,0.00012665,2]
[399788944,1766679031887,-299.99,0.00012665,2]
[399788946,1766679031897,-9999.99,0.00012665,2]
[399788948,1766679031906,-3807.71,0.00012665,2]
[399788950,1766679031915,-384.08150383,0.00012665,2]
[399788952,1766679031925,-187.32314211,0.00012665,2]
[399788954,1766679031935,-172.94725609,0.00012665,2]
[399788956,1766679031945,-5314.293,0.00012665,2]
[399788958,1766679031954,-346.607,0.00012665,2]
[399788960,1766679031964,-7415.5494,0.00012666,2]
[399788962,1766679031974,-500.0,0.00012666,2]
[399788965,1766679031984,-2500.0,0.00012666,2]
[399788966,1766679031994,-259.84512539,0.00012666,2]
[399788989,1766679032294,-1277.81018795,0.00012666,2]
[399788990,1766679032312,-3977.910893,0.00012666,2]
[399788991,1766679032322,-166.66,0.00012699,2]
[399788992,1766679032332,-500.0,0.00012758,2]
[399788993,1766679032343,-151.0,0.00012758,2]
[399788994,1766679032353,-500.0,0.00012758,2]
[399788995,1766679032367,-151.0,0.00012758,2]
[399788996,1766679032376,-151.0,0.00012758,2]
[399788997,1766679032386,-500.0,0.00012758,2]
[399788998,1766679032396,-151.0,0.00012758,2]
[399788999,1766679032406,-131.16071568,0.00012758,2]
[399789000,1766679032423,-19.83928432,0.00012758,2]
[399789001,1766679032434,-387.16071568,0.00012758,2]
[399789002,1766679032447,-112.83928432,0.00012758,2]
[399789003,1766679032458,-183.16071565,0.00012758,2]
[399789004,1766679032471,-53.54093825,0.00012758,2]
[399789005,1766679032481,-151.0,0.00012758,2]
[399789006,1766679032491,-500.0,0.00012758,2]
[399789007,1766679032502,-151.0,0.00012758,2]
[399789008,1766679032512,-500.0,0.00012758,2]
[399789009,1766679032522,-151.0,0.00012758,2]
[399789010,1766679032532,-500.0,0.00012758,2]
[399789011,1766679032543,-151.0,0.00012758,2]
[399789012,1766679032553,-500.0,0.00012758,2]
[399789013,1766679032564,-151.0,0.00012758,2]
[399789014,1766679032574,-626.72929824,0.00012758,2]
[399789015,1766679032583,-151.0,0.00012758,2]
[399789016,1766679032593,-171.27551699,0.00012758,2]
[399789017,1766679032606,-36.12448301,0.00012758,2]
[399789018,1766679032616,-151.0,0.00012758,2]
[399789019,1766679032626,-151.0,0.00012758,2]
[399789020,1766679032635,-151.0,0.00012758,2]
[399789021,1766679032645,-200.0,0.00012758,2]
[399789022,1766679032655,-125.35337431,0.00012758,2]
[399789023,1766679032672,-74.64662569,0.00012758,2]
[399789024,1766679032683,-500.0,0.00012758,2]
[399789025,1766679032693,-500.0,0.00012758,2]
[399789026,1766679032703,-500.0,0.00012758,2]
[399789027,1766679032713,-615.40475298,0.00012758,2]
[399789028,1766679032722,-166.66,0.00012822,2]
[399789029,1766679032732,-846.7,0.00012925,2]
[399789030,1766679032742,-449.01852355,0.00012939,2]
[399789031,1766679032752,-166.66,0.00012945,2]
[399789032,1766679032763,-1000.0,0.00013132,2]
[399789033,1766679032773,-1118.71439646,0.0001316,2]
[399789034,1766679032788,-846.7,0.00013199,2]
[399789035,1766679032798,-300.0,0.00013242,2]
[399789036,1766679032808,-250.0,0.00013242,2]
[399789037,1766679032818,-300.0,0.00013242,2]
[399789038,1766679032828,-255.0,0.00013466,2]
[399789039,1766679032838,-846.7,0.00013473,2]
[399789040,1766679032849,-162.62,0.00013576,2]
[399789041,1766679032859,-1680.0,0.00013614,2]
[399789042,1766679032869,-500.0,0.00013698,2]
[399789043,1766679032879,-500.0,0.00013698,2]
[399789044,1766679032889,-500.0,0.00013698,2]
[399789045,1766679032900,-500.0,0.00013698,2]
[399789046,1766679032911,-500.0,0.00013698,2]
[399789047,1766679032920,-500.0,0.00013698,2]
[399789048,1766679032930,-500.0,0.00013698,2]
[399789049,1766679032940,-500.0,0.00013698,2]
[399789050,1766679032950,-500.0,0.00013698,2]
[399789051,1766679032960,-500.0,0.00013698,2]
[399789052,1766679032970,-507.55739974,0.00013698,2]
[399789053,1766679032980,-500.0,0.00013698,2]
[399789054,1766679032991,-500.0,0.00013698,2]
[399789055,1766679033001,-483.52743712,0.00013698,2]
[399789056,1766679033014,-16.47256288,0.00013698,2]
[399789057,1766679033024,-341.52743712,0.00013698,2]
[399789058,1766679033036,-158.47256288,0.00013698,2]
[399789059,1766679033046,-207.28512166,0.00013698,2]
[399789060,1766679033058,-292.71487834,0.00013698,2]
[399789061,1766679033068,-500.0,0.00013698,2]
[399789062,1766679033077,-63.92403302,0.00013698,2]
[399789067,1766679037379,-436.07596698,0.00013698,2]
[399789069,1766679037389,-500.0,0.00013698,2]
[399789072,1766679037399,-500.0,0.00013698,2]
[399789073,1766679037410,-508.77600646,0.00013698,2]
[399789074,1766679037421,-500.0,0.00013698,2]
[399789075,1766679037431,-500.0,0.00013698,2]
[399789076,1766679037444,-500.0,0.00013698,2]
[399789077,1766679037455,-500.0,0.00013698,2]
[399789078,1766679037465,-500.0,0.00013698,2]
[399789079,1766679037475,-500.0,0.00013698,2]
[399789080,1766679037485,-500.0,0.00013698,2]
[399789081,1766679037495,-500.0,0.00013698,2]
[399789082,1766679037505,-500.0,0.00013698,2]
[399789083,1766679037515,-500.0,0.00013698,2]
[399789084,1766679037525,-500.0,0.00013698,2]
[399789085,1766679037535,-500.0,0.00013698,2]
[399789086,1766679037545,-500.0,0.00013698,2]
[399789087,1766679037556,-340.62987878,0.00013698,2]
[399789088,1766679037580,-159.37012122,0.00013698,2]
[399789089,1766679037591,-403.12239896,0.00013698,2]
[399789090,1766679037601,-35.93165409,0.00013698,2]
[399789091,1766679037613,-455.06899995,0.00013698,2]
[399789092,1766679037625,-8.99934596,0.00013698,2]
[399789093,1766679037635,-500.0,0.00013698,2]
[399789094,1766679037646,-515.36,0.00013699,2]
[399789095,1766679037655,-428.07085874,0.00013699,2]
[399789097,1766679037665,-261.59885811,0.00013699,2]
[399789099,1766679037676,-166.47200062,0.00013699,2]
[399789101,1766679037686,-500.0,0.00013699,2]
[399789103,1766679037696,-500.0,0.00013699,2]
[399789105,1766679037706,-458.31172248,0.00013699,2]
[399789107,1766679037716,-15.54205234,0.00013747,2]
[399789109,1766679037728,-831.15794766,0.00013747,2]
[399789111,1766679037738,-229.81,0.00013874,2]
[399789113,1766679037748,-846.7,0.00014021,2]
[399789115,1766679037758,-500.0,0.0001404,2]
[399789117,1766679037768,-500.0,0.0001404,2]
[399789119,1766679037779,-846.7,0.00014295,2]
[399789122,1766679037789,-500.0,0.00014543,2]
[399789124,1766679037799,-500.0,0.00014543,2]
[399789126,1766679037809,-846.7,0.00014569,2]
[399789128,1766679037818,-500.0,0.00014639,2]
[399789130,1766679037828,-433.0,0.00014654,2]
[399789132,1766679037838,-162.62,0.0001481,2]
[399789134,1766679037847,-846.7,0.00014843,2]
[399789136,1766679037857,-2351.0,0.00014975,2]
[399789138,1766679037867,-151.0,0.00014978,2]
[399789140,1766679037879,-151.0,0.00014978,2]
[399789142,1766679037889,-151.0,0.00014988,2]
[399789144,1766679037898,-151.0,0.00014988,2]
[399789146,1766679037908,-846.7,0.00015117,2]
[399789148,1766679037918,-297.95782192,0.00015288,2]
[399789150,1766679037928,-150.0,0.00015288,2]
[399789152,1766679037938,-278.77144016,0.00015288,2]
[399789153,1766679037949,-161.31844232,0.00015288,2]
[399789154,1766679037959,-150.0,0.00015288,2]
[399789155,1766679037969,-150.0,0.00015288,2]
[399789156,1766679037980,-208.13382846,0.00015288,2]
[399789157,1766679037990,-194.3242755,0.00015288,2]
[399789158,1766679038000,-401.09949094,0.00015288,2]
[399789159,1766679038010,-150.0,0.00015288,2]
[399789160,1766679038020,-150.0,0.00015288,2]
[399789161,1766679038031,-150.0,0.00015288,2]
[399789162,1766679038041,-150.0,0.00015288,2]
[399789163,1766679038051,-150.0,0.00015288,2]
[399789164,1766679038061,-150.0,0.00015288,2]
[399789165,1766679038071,-150.0,0.00015288,2]
[399789166,1766679038081,-297.95782192,0.00015305,2]
[399789167,1766679038092,-278.77144016,0.00015305,2]
[399789168,1766679038102,-161.31844232,0.00015305,2]
[399789169,1766679038112,-208.13382846,0.00015305,2]
[399789170,1766679038122,-194.3242755,0.00015305,2]
[399789171,1766679038132,-401.09949094,0.00015305,2]
[399789172,1766679038142,-150.0,0.00015309,2]
[399789173,1766679038152,-150.0,0.0001532,2]
[399789174,1766679038162,-297.95782192,0.00015322,2]
[399789175,1766679038172,-278.77144016,0.00015322,2]
[399789176,1766679038183,-161.31844232,0.00015322,2]
[399789177,1766679038193,-208.13382846,0.00015322,2]
[399789178,1766679038203,-194.3242755,0.00015322,2]
[399789179,1766679038213,-401.09949094,0.00015322,2]
[399789180,1766679038223,-150.0,0.00015329,2]
[399789181,1766679038233,-150.0,0.0001533,2]
[399789182,1766679038243,-150.0,0.00015336,2]
[399789183,1766679038253,-297.95782192,0.00015339,2]
[399789184,1766679038263,-278.77144016,0.00015339,2]
[399789185,1766679038273,-161.31844232,0.00015339,2]
[399789186,1766679038283,-208.13382846,0.00015339,2]
[399789187,1766679038292,-194.3242755,0.00015339,2]
[399789188,1766679038303,-401.09949094,0.00015339,2]
[399789189,1766679038312,-150.0,0.00015351,2]
[399789190,1766679038322,-150.0,0.00015351,2]
[399789191,1766679038332,-150.0,0.00015352,2]
[399789192,1766679038342,-297.95782192,0.00015356,2]
[399789193,1766679038352,-278.77144016,0.00015356,2]
[399789194,1766679038365,-161.31844232,0.00015356,2]
[399789195,1766679038375,-208.13382846,0.00015356,2]
[399789196,1766679038386,-194.3242755,0.00015356,2]
[399789197,1766679038396,-401.09949094,0.00015356,2]
[399789198,1766679038407,-150.0,0.00015371,2]
[399789199,1766679038416,-150.0,0.00015373,2]
[399789200,1766679038426,-297.95782192,0.00015373,2]
[399789201,1766679038436,-278.77144016,0.00015373,2]
[399789202,1766679038446,-161.31844232,0.00015373,2]
[399789203,1766679038456,-208.13382846,0.00015373,2]
[399789204,1766679038466,-194.3242755,0.00015373,2]
[399789205,1766679038476,-401.09949094,0.00015373,2]
[399789206,1766679038487,-150.0,0.00015384,2]
[399789207,1766679038497,-150.0,0.00015385,2]
[399789208,1766679038507,-297.95782192,0.00015391,2]
[399789209,1766679038516,-278.77144016,0.00015391,2]
[399789210,1766679038526,-161.31844232,0.00015391,2]
[399789211,1766679038536,-208.13382846,0.00015391,2]
[399789212,1766679038546,-194.3242755,0.00015391,2]
[399789213,1766679038556,-401.09949094,0.00015391,2]
[399789214,1766679038566,-846.7,0.00015391,2]
[399789215,1766679038576,-150.0,0.00015394,2]
[399789216,1766679038586,-297.95782192,0.00015408,2]
[399789217,1766679038595,-278.77144016,0.00015408,2]
[399789218,1766679038608,-161.31844232,0.00015408,2]
[399789219,1766679038618,-208.13382846,0.00015408,2]
[399789220,1766679038628,-194.3242755,0.00015408,2]
[399789221,1766679038638,-401.09949094,0.00015408,2]
[399789222,1766679038648,-150.0,0.00015412,2]
[399789223,1766679038658,-150.0,0.00015413,2]
[399789224,1766679038669,-150.0,0.00015415,2]
[399789225,1766679038680,-150.0,0.00015416,2]
[399789226,1766679038691,-297.95782192,0.00015425,2]
[399789227,1766679038701,-278.77144016,0.00015425,2]
[399789228,1766679038711,-161.31844232,0.00015425,2]
[399789229,1766679038720,-208.13382846,0.00015425,2]
[399789230,1766679038730,-194.3242755,0.00015425,2]
[399789231,1766679038740,-401.09949094,0.00015425,2]
[399789232,1766679038750,-150.0,0.00015429,2]
[399789233,1766679038760,-150.0,0.00015433,2]
[399789234,1766679038770,-150.0,0.00015436,2]
[399789235,1766679038780,-297.95782192,0.00015442,2]
[399789236,1766679038790,-278.77144016,0.00015442,2]
[399789237,1766679038799,-161.31844232,0.00015442,2]
[399789238,1766679038810,-208.13382846,0.00015442,2]
[399789239,1766679038819,-194.3242755,0.00015442,2]
[399789240,1766679038829,-401.09949094,0.00015442,2]
[399789241,1766679038839,-150.0,0.00015448,2]
[399789242,1766679038849,-150.0,0.00015453,2]
[399789243,1766679038859,-150.0,0.00015458,2]
[399789244,1766679038869,-297.95782192,0.00015459,2]
[399789245,1766679038879,-278.77144016,0.00015459,2]
[399789246,1766679038890,-161.31844232,0.00015459,2]
[399789247,1766679038900,-208.13382846,0.00015459,2]
[399789248,1766679038910,-194.3242755,0.00015459,2]
[399789249,1766679038920,-401.09949094,0.00015459,2]
[399789250,1766679038931,-297.95782192,0.00015476,2]
[399789251,1766679038940,-278.77144016,0.00015476,2]
[399789252,1766679038951,-161.31844232,0.00015476,2]
[399789253,1766679038962,-150.0,0.00015476,2]
[399789254,1766679038972,-208.13382846,0.00015476,2]
[399789255,1766679038982,-194.3242755,0.00015476,2]
[399789256,1766679038994,-401.09949094,0.00015476,2]
[399789257,1766679039004,-150.0,0.00015479,2]
[399789258,1766679039015,-150.0,0.0001548,2]
[399789259,1766679039025,-150.0,0.00015482,2]
[399789260,1766679039035,-297.95782192,0.00015494,2]
[399789261,1766679039046,-278.77144016,0.00015494,2]
[399789262,1766679039056,-161.31844232,0.00015494,2]
[399789263,1766679039067,-208.13382846,0.00015494,2]
[399789264,1766679039078,-194.3242755,0.00015494,2]
[399789265,1766679039088,-401.09949094,0.00015494,2]
[399789266,1766679039099,-150.0,0.00015495,2]
[399789267,1766679039110,-215.0738,0.00015497,2]
[399789268,1766679039121,-3565.03,0.00015498,2]
[399789269,1766679039131,-150.0,0.000155,2]
[399789270,1766679039142,-150.0,0.000155,2]
[399789271,1766679039151,-297.95782192,0.00015511,2]
[399789272,1766679039161,-278.77144016,0.00015511,2]
[399789273,1766679039171,-161.31844232,0.00015511,2]
[399789275,1766679039182,-208.13382846,0.00015511,2]
[399789276,1766679039193,-194.3242755,0.00015511,2]
[399789277,1766679039204,-401.09949094,0.00015511,2]
[399789278,1766679039214,-150.0,0.00015512,2]
[399789279,1766679039224,-150.0,0.00015521,2]
[399789280,1766679039234,-10962.0,0.00015528,2]
[399789281,1766679039245,-297.95782192,0.00015528,2]
[399789282,1766679039255,-278.77144016,0.00015528,2]
[399789283,1766679039265,-161.31844232,0.00015528,2]
[399789284,1766679039275,-208.13382846,0.00015528,2]
[399789285,1766679039286,-194.3242755,0.00015528,2]
[399789286,1766679039296,-401.09949094,0.00015528,2]
[399789287,1766679039306,-150.0,0.0001553,2]
[399789288,1766679039316,-150.0,0.00015536,2]
[399789289,1766679039326,-150.0,0.00015539,2]
[399789290,1766679039336,-150.0,0.00015542,2]
[399789291,1766679039346,-150.0,0.00015544,2]
[399789292,1766679039356,-297.95782192,0.00015545,2]
[399789293,1766679039370,-278.77144016,0.00015545,2]
[399789294,1766679039380,-161.31844232,0.00015545,2]
[399789295,1766679039391,-208.13382846,0.00015545,2]
[399789296,1766679039401,-194.3242755,0.00015545,2]
[399789297,1766679039412,-401.09949094,0.00015545,2]
[399789298,1766679039422,-297.95782192,0.00015562,2]
[399789299,1766679039432,-278.77144016,0.00015562,2]
[399789300,1766679039442,-161.31844232,0.00015562,2]
[399789301,1766679039451,-208.13382846,0.00015562,2]
[399789302,1766679039461,-194.3242755,0.00015562,2]
[399789303,1766679039471,-401.09949094,0.00015562,2]
[399789304,1766679039482,-150.0,0.00015564,2]
[399789305,1766679039492,-150.0,0.00015571,2]
[399789307,1766679039502,-150.0,0.00015571,2]
[399789308,1766679039512,-150.0,0.00015576,2]
[399789309,1766679039521,-150.0,0.00015578,2]
[399789310,1766679039532,-150.0,0.00015579,2]
[399789311,1766679039542,-297.95782192,0.00015579,2]
[399789312,1766679039552,-278.77144016,0.00015579,2]
[399789313,1766679039562,-161.31844232,0.00015579,2]
[399789314,1766679039573,-208.13382846,0.00015579,2]
[399789315,1766679039583,-194.3242755,0.00015579,2]
[399789316,1766679039595,-401.09949094,0.00015579,2]
[399789317,1766679039604,-150.0,0.00015585,2]
[399789318,1766679039614,-297.95782192,0.00015597,2]
[399789319,1766679039625,-278.77144016,0.00015597,2]
[399789320,1766679039636,-161.31844232,0.00015597,2]
[399789321,1766679039645,-208.13382846,0.00015597,2]
[399789322,1766679039656,-194.3242755,0.00015597,2]
[399789323,1766679039665,-401.09949094,0.00015597,2]
[399789324,1766679039676,-150.0,0.00015602,2]
[399789325,1766679039686,-150.0,0.00015606,2]
[399789326,1766679039696,-150.0,0.00015608,2]
[399789327,1766679039705,-297.95782192,0.00015614,2]
[399789328,1766679039715,-278.77144016,0.00015614,2]
[399789329,1766679039725,-161.31844232,0.00015614,2]
[399789330,1766679039735,-208.13382846,0.00015614,2]
[399789331,1766679039745,-194.3242755,0.00015614,2]
[399789332,1766679039755,-401.09949094,0.00015614,2]
[399789333,1766679039766,-150.0,0.00015619,2]
[399789334,1766679039777,-150.0,0.00015627,2]
[399789335,1766679039787,-150.0,0.00015627,2]
[399789336,1766679039798,-297.95782192,0.00015631,2]
[399789337,1766679039808,-278.77144016,0.00015631,2]
[399789338,1766679039818,-161.31844232,0.00015631,2]
[399789339,1766679039829,-208.13382846,0.00015631,2]
[399789340,1766679039838,-194.3242755,0.00015631,2]
[399789341,1766679039847,-401.09949094,0.00015631,2]
[399789342,1766679039857,-150.0,0.0001564,2]
[399789343,1766679039867,-297.95782192,0.00015648,2]
[399789344,1766679039878,-278.77144016,0.00015648,2]
[399789345,1766679039888,-161.31844232,0.00015648,2]
[399789346,1766679039899,-208.13382846,0.00015648,2]
[399789347,1766679039909,-194.3242755,0.00015648,2]
[399789348,1766679039919,-401.09949094,0.00015648,2]
[399789349,1766679039929,-150.0,0.00015649,2]
[399789350,1766679039939,-150.0,0.00015661,2]
[399789351,1766679039951,-297.95782192,0.00015665,2]
[399789352,1766679039961,-278.77144016,0.00015665,2]
[399789353,1766679039971,-161.31844232,0.00015665,2]
[399789354,1766679039981,-150.0,0.00015665,2]
[399789356,1766679039991,-208.13382846,0.00015665,2]
[399789357,1766679040002,-194.3242755,0.00015665,2]
[399789358,1766679040012,-401.09949094,0.00015665,2]
[399789359,1766679040022,-150.0,0.0001567,2]
[399789361,1766679040032,-150.0,0.00015672,2]
[399789362,1766679040042,-150.0,0.00015676,2]
[399789363,1766679040052,-297.95782192,0.00015682,2]
[399789364,1766679040062,-278.77144016,0.00015682,2]
[399789365,1766679040072,-161.31844232,0.00015682,2]
[399789366,1766679040082,-208.13382846,0.00015682,2]
[399789367,1766679040091,-194.3242755,0.00015682,2]
[399789368,1766679040102,-401.09949094,0.00015682,2]
[399789370,1766679040111,-150.0,0.00015691,2]
[399789372,1766679040122,-297.95782192,0.00015699,2]
[399789374,1766679040132,-278.77144016,0.00015699,2]
[399789376,1766679040142,-161.31844232,0.00015699,2]
[399789378,1766679040152,-208.13382846,0.00015699,2]
[399789380,1766679040162,-194.3242755,0.00015699,2]
[399789382,1766679040171,-401.09949094,0.00015699,2]
[399789385,1766679040396,-150.0,0.00015702,2]
[399789386,1766679040407,-150.0,0.00015704,2]
[399789387,1766679040418,-150.0,0.00015712,2]
[399789388,1766679040428,-150.0,0.00015712,2]
[399789389,1766679040440,-150.0,0.00015712,2]
[399789390,1766679040450,-297.95782192,0.00015717,2]
[399789391,1766679040461,-278.77144016,0.00015717,2]
[399789392,1766679040471,-161.31844232,0.00015717,2]
[399789393,1766679040481,-208.13382846,0.00015717,2]
[399789394,1766679040491,-194.3242755,0.00015717,2]
[399789395,1766679040501,-401.09949094,0.00015717,2]
[399789396,1766679040511,-150.0,0.00015724,2]
[399789397,1766679040521,-150.0,0.00015728,2]
[399789398,1766679040531,-150.0,0.00015734,2]
[399789399,1766679040542,-297.95782192,0.00015734,2]
[399789400,1766679040553,-278.77144016,0.00015734,2]
[399789401,1766679040563,-161.31844232,0.00015734,2]
[399789402,1766679040573,-208.13382846,0.00015734,2]
[399789403,1766679040583,-194.3242755,0.00015734,2]
[399789404,1766679040592,-401.09949094,0.00015734,2]
[399789405,1766679040602,-150.0,0.00015736,2]
[399789406,1766679040613,-150.0,0.00015743,2]
[399789407,1766679040623,-297.95782192,0.00015751,2]
[399789408,1766679040633,-278.77144016,0.00015751,2]
[399789409,1766679040643,-161.31844232,0.00015751,2]
[399789410,1766679040653,-208.13382846,0.00015751,2]
[399789411,1766679040663,-194.3242755,0.00015751,2]
[399789412,1766679040673,-401.09949094,0.00015751,2]
[399789413,1766679040683,-150.0,0.00015755,2]
[399789414,1766679040694,-297.95782192,0.00015768,2]
[399789415,1766679040705,-278.77144016,0.00015768,2]
[399789416,1766679040715,-161.31844232,0.00015768,2]
[399789417,1766679040725,-208.13382846,0.00015768,2]
[399789418,1766679040736,-194.3242755,0.00015768,2]
[399789419,1766679040746,-401.09949094,0.00015768,2]
[399789420,1766679040756,-150.0,0.00015768,2]
[399789421,1766679040767,-150.0,0.00015773,2]
[399789422,1766679040777,-150.0,0.00015776,2]
[399789424,1766679040791,-150.0,0.00015785,2]
[399789425,1766679040802,-297.95782192,0.00015785,2]
[399789426,1766679040812,-278.77144016,0.00015785,2]
[399789427,1766679040823,-161.31844232,0.00015785,2]
[399789428,1766679040833,-208.13382846,0.00015785,2]
[399789429,1766679040844,-194.3242755,0.00015785,2]
[399789430,1766679040854,-401.09949094,0.00015785,2]
[399789431,1766679040864,-150.0,0.00015791,2]
[399789432,1766679040874,-150.0,0.00015797,2]
[399789433,1766679040883,-150.0,0.000158,2]
[399789434,1766679040894,-297.95782192,0.00015802,2]
[399789435,1766679040904,-278.77144016,0.00015802,2]
[399789436,1766679040914,-161.31844232,0.00015802,2]
[399789437,1766679040924,-208.13382846,0.00015802,2]
[399789438,1766679040935,-194.3242755,0.00015802,2]
[399789439,1766679040944,-401.09949094,0.00015802,2]
[399789440,1766679040955,-150.0,0.00015818,2]
[399789441,1766679040966,-297.95782192,0.0001582,2]
[399789442,1766679040976,-278.77144016,0.0001582,2]
[399789443,1766679040987,-161.31844232,0.0001582,2]
[399789444,1766679040997,-208.13382846,0.0001582,2]
[399789445,1766679041007,-194.3242755,0.0001582,2]
[399789446,1766679041016,-401.09949094,0.0001582,2]
[399789447,1766679041026,-150.0,0.00015822,2]
[399789448,1766679041036,-150.0,0.00015826,2]
[399789449,1766679041045,-150.0,0.00015833,2]
[399789450,1766679041056,-297.95782192,0.00015837,2]
[399789451,1766679041066,-278.77144016,0.00015837,2]
[399789452,1766679041076,-161.31844232,0.00015837,2]
[399789453,1766679041086,-208.13382846,0.00015837,2]
[399789454,1766679041100,-194.3242755,0.00015837,2]
[399789455,1766679041110,-401.09949094,0.00015837,2]
[399789456,1766679041120,-150.0,0.0001584,2]
[399789457,1766679041130,-6727.38,0.00015844,2]
[399789458,1766679041140,-297.95782192,0.00015854,2]
[399789459,1766679041150,-278.77144016,0.00015854,2]
[399789460,1766679041160,-161.31844232,0.00015854,2]
[399789461,1766679041170,-150.0,0.00015854,2]
[399789462,1766679041181,-208.13382846,0.00015854,2]
[399789463,1766679041191,-194.3242755,0.00015854,2]
[399789464,1766679041201,-401.09949094,0.00015854,2]
[399789465,1766679041211,-150.0,0.00015854,2]
[399789466,1766679041221,-150.0,0.00015854,2]
[399789467,1766679041231,-150.0,0.00015861,2]
[399789468,1766679041241,-250.0,0.00015861,2]
[399789469,1766679041251,-148.93651198,0.00015865,2]
[399789470,1766679041559,-1.06348802,0.00015865,2]
[399789471,1766679041569,-150.0,0.00015868,2]